[Event "*** Qualifier 4: Titled Tuesday 3|2 Blitz"]
[Site "Chess.com"]
[Date "2017.04.25"]
[Round "5"]
[White "kreonx"]
[Black "grzechu96"]
[Result "1-0"]
[WhiteElo "2225"]
[BlackElo "2376"]
[TimeControl "180+2"]
[EndTime "14:01:23 PDT"]
[Termination "kreonx won by resignation"]

1. e4 {[%clk 0:03:02]} 1... c5 {[%clk 0:03:01]} 2. Nc3 {[%clk 0:03:02.3]} 2...
a6 {[%clk 0:03:01.8]} 3. g3 {[%clk 0:03:03.3]} 3... b5 {[%clk 0:03:03.2]} 4. Bg2
{[%clk 0:03:04.8]} 4... Bb7 {[%clk 0:03:04.9]} 5. d3 {[%clk 0:03:04.3]} 5... e6
{[%clk 0:03:06.1]} 6. Nge2 {[%clk 0:03:04.5]} 6... d5 {[%clk 0:03:01.4]} 7. exd5
{[%clk 0:03:04.7]} 7... exd5 {[%clk 0:03:02.5]} 8. d4 {[%clk 0:03:05.9]} 8...
Nf6 {[%clk 0:03:00.6]} 9. O-O {[%clk 0:03:05.7]} 9... Be7 {[%clk 0:03:00.1]} 10.
dxc5 {[%clk 0:03:04.8]} 10... Bxc5 {[%clk 0:03:01.2]} 11. Nd4 {[%clk 0:03:04.7]}
11... O-O {[%clk 0:03:01.9]} 12. Nce2 {[%clk 0:02:58.9]} 12... Ne4 {[%clk
0:03:01.8]} 13. Be3 {[%clk 0:02:57.7]} 13... Nd7 {[%clk 0:03:01.7]} 14. c3
{[%clk 0:02:58.7]} 14... Ndf6 {[%clk 0:02:58.3]} 15. Nf5 {[%clk 0:02:57.1]}
15... Bxe3 {[%clk 0:02:38]} 16. Nxe3 {[%clk 0:02:57.5]} 16... Rc8 {[%clk
0:02:39.7]} 17. Nf4 {[%clk 0:02:49.3]} 17... Qd6 {[%clk 0:02:27.4]} 18. Qd4
{[%clk 0:02:48.9]} 18... Rfd8 {[%clk 0:02:27]} 19. Rad1 {[%clk 0:02:47.9]} 19...
Qc7 {[%clk 0:02:25.2]} 20. Bh3 {[%clk 0:02:16.4]} 20... Rb8 {[%clk 0:02:16]} 21.
Bg2 {[%clk 0:02:16.7]} 21... a5 {[%clk 0:02:16.5]} 22. a3 {[%clk 0:02:16.8]}
22... Ba8 {[%clk 0:02:17.4]} 23. Rfe1 {[%clk 0:02:05.3]} 23... h6 {[%clk
0:02:10.4]} 24. Nd3 {[%clk 0:01:55.2]} 24... Qc8 {[%clk 0:01:56.6]} 25. Qa7
{[%clk 0:01:47.7]} 25... d4 {[%clk 0:01:43.2]} 26. cxd4 {[%clk 0:01:42.2]} 26...
Rd7 {[%clk 0:01:30.9]} 27. Qxa5 {[%clk 0:01:36.3]} 27... Rxd4 {[%clk 0:01:32.5]}
28. Nb4 {[%clk 0:01:25.5]} 28... Rxd1 {[%clk 0:01:14.8]} 29. Rxd1 {[%clk
0:01:24.5]} 29... h5 {[%clk 0:00:53.5]} 30. Na6 {[%clk 0:01:24.8]} 1-0

[Event "*** Qualifier 4: Titled Tuesday 3|2 Blitz"]
[Site "Chess.com"]
[Date "2017.04.25"]
[Round "5"]
[White "hansen"]
[Black "Elshan1985"]
[Result "1/2-1/2"]
[WhiteElo "2651"]
[BlackElo "2507"]
[TimeControl "180+2"]
[EndTime "14:01:26 PDT"]
[Termination "Game drawn by agreement"]

1. e4 {[%clk 0:03:02]} 1... e5 {[%clk 0:03:00.8]} 2. Nf3 {[%clk 0:02:55]} 2...
Nc6 {[%clk 0:03:02.4]} 3. Bb5 {[%clk 0:02:50.2]} 3... a6 {[%clk 0:03:03.2]} 4.
Ba4 {[%clk 0:02:51.1]} 4... Nf6 {[%clk 0:03:04.6]} 5. O-O {[%clk 0:02:40]} 5...
Be7 {[%clk 0:03:05.7]} 6. Re1 {[%clk 0:02:32.6]} 6... b5 {[%clk 0:03:06]} 7. Bb3
{[%clk 0:02:33.4]} 7... O-O {[%clk 0:03:07.8]} 8. h3 {[%clk 0:02:29.1]} 8... d6
{[%clk 0:03:03.4]} 9. c3 {[%clk 0:02:29.5]} 9... Na5 {[%clk 0:03:04]} 10. Bc2
{[%clk 0:02:30.6]} 10... c5 {[%clk 0:03:05.4]} 11. d4 {[%clk 0:02:32.5]} 11...
Nd7 {[%clk 0:03:06.2]} 12. d5 {[%clk 0:02:17.6]} 12... c4 {[%clk 0:03:06.8]} 13.
Nbd2 {[%clk 0:02:17.2]} 13... Nb7 {[%clk 0:03:07.1]} 14. Nf1 {[%clk 0:02:16]}
14... Nbc5 {[%clk 0:03:08]} 15. Ng3 {[%clk 0:02:16.7]} 15... g6 {[%clk
0:03:08.9]} 16. Bh6 {[%clk 0:02:17.2]} 16... Re8 {[%clk 0:03:10.2]} 17. b4
{[%clk 0:02:07.1]} 17... cxb3 {[%clk 0:03:06.9]} 18. axb3 {[%clk 0:02:08.2]}
18... Nf6 {[%clk 0:03:05.5]} 19. Qd2 {[%clk 0:02:03]} 19... Bf8 {[%clk
0:03:02.1]} 20. Bxf8 {[%clk 0:01:58.9]} 20... Rxf8 {[%clk 0:03:01.6]} 21. Qh6
{[%clk 0:01:57.5]} 21... Re8 {[%clk 0:02:40.5]} 22. Ng5 {[%clk 0:01:24.5]} 22...
Qe7 {[%clk 0:02:40.9]} 23. Ra2 {[%clk 0:00:45]} 23... Qf8 {[%clk 0:02:37]} 24.
Qxf8+ {[%clk 0:00:40.6]} 24... Kxf8 {[%clk 0:02:37.6]} 25. Rea1 {[%clk
0:00:42.5]} 25... Bb7 {[%clk 0:02:31.5]} 26. Nf3 {[%clk 0:00:40.1]} 26... Rec8
{[%clk 0:02:26.6]} 27. Nd2 {[%clk 0:00:36.4]} 27... Ncd7 {[%clk 0:02:13.4]} 28.
c4 {[%clk 0:00:35.1]} 28... Nb6 {[%clk 0:02:14.1]} 29. cxb5 {[%clk 0:00:24.1]}
29... axb5 {[%clk 0:02:12.9]} 30. Rxa8 {[%clk 0:00:25.3]} 30... Rxa8 {[%clk
0:02:00.8]} 31. Rxa8+ {[%clk 0:00:25.4]} 31... Nxa8 {[%clk 0:02:02.1]} 32. b4
{[%clk 0:00:23.9]} 32... Nc7 {[%clk 0:01:54.2]} 33. Bd3 {[%clk 0:00:19.4]} 33...
Na6 {[%clk 0:01:49.8]} 34. Bxb5 {[%clk 0:00:20]} 34... Nxb4 {[%clk 0:01:50.9]}
35. f3 {[%clk 0:00:19.6]} 35... Ba6 {[%clk 0:01:46.1]} 36. Bxa6 {[%clk
0:00:19.3]} 36... Nxa6 {[%clk 0:01:46.5]} 1/2-1/2

[Event "*** Qualifier 4: Titled Tuesday 3|2 Blitz"]
[Site "Chess.com"]
[Date "2017.04.25"]
[Round "5"]
[White "johnathan113"]
[Black "ChristopherYoo"]
[Result "0-1"]
[WhiteElo "2446"]
[BlackElo "2299"]
[TimeControl "180+2"]
[EndTime "14:01:38 PDT"]
[Termination "ChristopherYoo won by resignation"]

1. d4 {[%clk 0:02:59.4]} 1... Nf6 {[%clk 0:02:59.9]} 2. Nc3 {[%clk 0:03:01.3]}
2... d5 {[%clk 0:02:50.5]} 3. Bf4 {[%clk 0:03:02.6]} 3... g6 {[%clk 0:02:50.8]}
4. Qd2 {[%clk 0:03:02.6]} 4... Bg7 {[%clk 0:02:51.1]} 5. Bh6 {[%clk 0:03:03.9]}
5... O-O {[%clk 0:02:51]} 6. Nf3 {[%clk 0:02:59.5]} 6... c5 {[%clk 0:02:46.7]}
7. Bxg7 {[%clk 0:02:59.5]} 7... Kxg7 {[%clk 0:02:47.2]} 8. O-O-O {[%clk
0:02:59.3]} 8... c4 {[%clk 0:02:46.8]} 9. Ne5 {[%clk 0:02:56.9]} 9... b5 {[%clk
0:02:36.2]} 10. Nxb5 {[%clk 0:02:57.3]} 10... Qb6 {[%clk 0:02:37.1]} 11. Nc3
{[%clk 0:02:57.7]} 11... Na6 {[%clk 0:02:21.6]} 12. e4 {[%clk 0:02:42.1]} 12...
Rb8 {[%clk 0:02:19.3]} 13. b3 {[%clk 0:02:43]} 13... Qa5 {[%clk 0:01:54.3]} 14.
Kb2 {[%clk 0:02:22.3]} 14... Nb4 {[%clk 0:01:30.2]} 15. a3 {[%clk 0:02:19.7]}
15... Nxc2 {[%clk 0:01:29.6]} 16. Kxc2 {[%clk 0:01:39.7]} 16... Qxa3 {[%clk
0:01:30.1]} 17. Rb1 {[%clk 0:01:39.9]} 17... cxb3+ {[%clk 0:01:05.3]} 18. Kd1
{[%clk 0:01:40.5]} 18... b2 {[%clk 0:00:57.4]} 19. exd5 {[%clk 0:01:34.5]} 19...
Bf5 {[%clk 0:00:47.4]} 20. Bd3 {[%clk 0:01:34.6]} 20... Rfc8 {[%clk 0:00:40.9]}
21. Nc6 {[%clk 0:01:21.8]} 21... Bxd3 {[%clk 0:00:38.1]} 22. Qxd3 {[%clk
0:01:02]} 22... Nxd5 {[%clk 0:00:38.7]} 23. Nxb8 {[%clk 0:00:48.5]} 23... Nxc3+
{[%clk 0:00:35.9]} 24. Ke1 {[%clk 0:00:41.8]} 24... Nxb1 {[%clk 0:00:35.9]} 25.
Qd2 {[%clk 0:00:42]} 25... Nxd2 {[%clk 0:00:35.9]} 0-1

[Event "*** Qualifier 4: Titled Tuesday 3|2 Blitz"]
[Site "Chess.com"]
[Date "2017.04.25"]
[Round "5"]
[White "DanielNaroditsky"]
[Black "Malev212"]
[Result "0-1"]
[WhiteElo "2685"]
[BlackElo "2463"]
[TimeControl "180+2"]
[EndTime "14:01:45 PDT"]
[Termination "Malev212 won by resignation"]

1. e4 {[%clk 0:02:44.3]} 1... g6 {[%clk 0:03:00.1]} 2. d4 {[%clk 0:02:45.2]}
2... Bg7 {[%clk 0:03:01.5]} 3. Nc3 {[%clk 0:02:46.8]} 3... c6 {[%clk 0:03:02.6]}
4. f4 {[%clk 0:02:47.6]} 4... d5 {[%clk 0:03:03.1]} 5. e5 {[%clk 0:02:49.1]}
5... Nh6 {[%clk 0:03:04.4]} 6. Nf3 {[%clk 0:02:50.6]} 6... f6 {[%clk 0:03:05.6]}
7. Bd3 {[%clk 0:02:50]} 7... Bg4 {[%clk 0:02:53.7]} 8. h3 {[%clk 0:02:51.2]}
8... Bxf3 {[%clk 0:02:54]} 9. Qxf3 {[%clk 0:02:53.1]} 9... O-O {[%clk
0:02:46.2]} 10. Qe2 {[%clk 0:02:28.1]} 10... fxe5 {[%clk 0:02:39]} 11. fxe5
{[%clk 0:02:30]} 11... Qb6 {[%clk 0:02:04.2]} 12. Be3 {[%clk 0:02:15.6]} 12...
Qxb2 {[%clk 0:01:59.3]} 13. Kd2 {[%clk 0:02:16.2]} 13... Qb6 {[%clk 0:01:50.8]}
14. g4 {[%clk 0:02:16.7]} 14... Nd7 {[%clk 0:01:46.7]} 15. h4 {[%clk 0:02:18]}
15... Nxe5 {[%clk 0:01:37.3]} 16. dxe5 {[%clk 0:01:38.5]} 16... d4 {[%clk
0:01:36.7]} 17. Bc4+ {[%clk 0:01:07.7]} 17... Kh8 {[%clk 0:01:36.4]} 18. Bxh6
{[%clk 0:01:08.4]} 18... Bxh6+ {[%clk 0:01:28.1]} 19. g5 {[%clk 0:01:09.7]}
19... dxc3+ {[%clk 0:01:27.4]} 20. Kxc3 {[%clk 0:01:11.6]} 20... Rf2 {[%clk
0:00:44.4]} 21. Qe4 {[%clk 0:01:12.7]} 21... Raf8 {[%clk 0:00:43.9]} 22. gxh6
{[%clk 0:01:09.2]} 22... R8f4 {[%clk 0:00:43.5]} 23. Rad1 {[%clk 0:00:28]} 23...
Rxe4 {[%clk 0:00:38.2]} 24. Rd8+ {[%clk 0:00:28.6]} 24... Qxd8 {[%clk
0:00:37.7]} 0-1

[Event "*** Qualifier 4: Titled Tuesday 3|2 Blitz"]
[Site "Chess.com"]
[Date "2017.04.25"]
[Round "5"]
[White "Indianlad"]
[Black "rasmussvane"]
[Result "1-0"]
[WhiteElo "2701"]
[BlackElo "2525"]
[TimeControl "180+2"]
[EndTime "14:01:58 PDT"]
[Termination "Indianlad won by resignation"]

1. e4 {[%clk 0:03:02]} 1... e6 {[%clk 0:02:59.1]} 2. d3 {[%clk 0:03:02]} 2... d5
{[%clk 0:02:59.9]} 3. Qe2 {[%clk 0:03:03.9]} 3... Nc6 {[%clk 0:02:57.3]} 4. Nf3
{[%clk 0:03:05.2]} 4... e5 {[%clk 0:02:58.5]} 5. c3 {[%clk 0:03:06]} 5... Nf6
{[%clk 0:02:59.1]} 6. Qc2 {[%clk 0:03:04.8]} 6... Bd6 {[%clk 0:02:58.6]} 7. Be2
{[%clk 0:03:05.9]} 7... O-O {[%clk 0:02:59.4]} 8. O-O {[%clk 0:03:07.5]} 8... a5
{[%clk 0:03:00.5]} 9. a4 {[%clk 0:03:07.9]} 9... h6 {[%clk 0:02:59.4]} 10. Rd1
{[%clk 0:03:09.1]} 10... Qe7 {[%clk 0:03:00.2]} 11. Na3 {[%clk 0:03:10.2]} 11...
Rd8 {[%clk 0:02:55.3]} 12. Nb5 {[%clk 0:03:08.6]} 12... Bc5 {[%clk 0:02:56.1]}
13. h3 {[%clk 0:03:03.7]} 13... Bb6 {[%clk 0:02:53.3]} 14. b3 {[%clk 0:03:00]}
14... Be6 {[%clk 0:02:48.2]} 15. Ba3 {[%clk 0:02:58.6]} 15... Qe8 {[%clk
0:02:48.7]} 16. Bf1 {[%clk 0:02:59]} 16... dxe4 {[%clk 0:02:17.4]} 17. dxe4
{[%clk 0:03:00.1]} 17... Rxd1 {[%clk 0:02:18.4]} 18. Rxd1 {[%clk 0:03:02]} 18...
Rd8 {[%clk 0:02:19.8]} 19. Rxd8 {[%clk 0:02:59.1]} 19... Qxd8 {[%clk 0:02:19.8]}
20. c4 {[%clk 0:02:59.5]} 20... Nd4 {[%clk 0:02:08]} 21. Nfxd4 {[%clk
0:02:49.2]} 21... Bxd4 {[%clk 0:01:59.2]} 22. c5 {[%clk 0:02:50.1]} 22... c6
{[%clk 0:01:32.5]} 23. Nd6 {[%clk 0:02:50.4]} 23... Qd7 {[%clk 0:01:21.4]} 24.
Bc4 {[%clk 0:02:45.2]} 24... Bxc4 {[%clk 0:01:15.3]} 25. Qxc4 {[%clk 0:02:44.2]}
25... Nh5 {[%clk 0:01:00.2]} 26. b4 {[%clk 0:02:28.5]} 26... Nf4 {[%clk
0:00:53.9]} 27. Bc1 {[%clk 0:02:25.5]} 27... Ne6 {[%clk 0:00:48.6]} 28. Bd2
{[%clk 0:02:26.9]} 28... axb4 {[%clk 0:00:48.5]} 29. Bxb4 {[%clk 0:02:28.8]}
29... g6 {[%clk 0:00:36.2]} 30. Ba3 {[%clk 0:01:55.4]} 30... Kg7 {[%clk
0:00:37.2]} 31. Qc2 {[%clk 0:01:33.1]} 31... h5 {[%clk 0:00:38]} 32. h4 {[%clk
0:01:32.9]} 32... Nf4 {[%clk 0:00:38]} 33. Bc1 {[%clk 0:01:28.4]} 33... Ne6
{[%clk 0:00:35.8]} 34. Ba3 {[%clk 0:01:29.3]} 34... Qc7 {[%clk 0:00:34.6]} 35.
Ne8+ {[%clk 0:01:25.4]} 1-0

[Event "*** Qualifier 4: Titled Tuesday 3|2 Blitz"]
[Site "Chess.com"]
[Date "2017.04.25"]
[Round "5"]
[White "Oneofmyturns"]
[Black "asms9699"]
[Result "1-0"]
[WhiteElo "2513"]
[BlackElo "2429"]
[TimeControl "180+2"]
[EndTime "14:02:09 PDT"]
[Termination "Oneofmyturns won by resignation"]

1. d4 {[%clk 0:03:02]} 1... d5 {[%clk 0:02:56.4]} 2. c4 {[%clk 0:03:03]} 2... c6
{[%clk 0:02:56.7]} 3. Nf3 {[%clk 0:03:02.6]} 3... Nf6 {[%clk 0:02:57.5]} 4. e3
{[%clk 0:03:03.3]} 4... a6 {[%clk 0:02:57.7]} 5. Nc3 {[%clk 0:03:02.9]} 5... g6
{[%clk 0:02:58.9]} 6. b3 {[%clk 0:03:02.1]} 6... Bg7 {[%clk 0:02:58.7]} 7. h3
{[%clk 0:03:02.7]} 7... O-O {[%clk 0:02:58.7]} 8. Be2 {[%clk 0:03:01.4]} 8... c5
{[%clk 0:02:59.6]} 9. Bb2 {[%clk 0:03:00.9]} 9... Nc6 {[%clk 0:02:59.2]} 10.
dxc5 {[%clk 0:02:41.5]} 10... dxc4 {[%clk 0:02:55.5]} 11. Qxd8 {[%clk
0:02:37.1]} 11... Rxd8 {[%clk 0:02:45]} 12. Bxc4 {[%clk 0:02:38.6]} 12... Nd7
{[%clk 0:02:23.9]} 13. Ng5 {[%clk 0:02:11.8]} 13... Nce5 {[%clk 0:01:59.9]} 14.
O-O-O {[%clk 0:01:45.1]} 14... Nxc4 {[%clk 0:01:57.1]} 15. bxc4 {[%clk 0:01:47]}
15... e6 {[%clk 0:01:42.6]} 16. Na4 {[%clk 0:01:46.6]} 16... Bxb2+ {[%clk
0:01:06.7]} 17. Kxb2 {[%clk 0:01:48.5]} 17... Re8 {[%clk 0:01:03.9]} 18. Ne4
{[%clk 0:01:43.5]} 18... Kf8 {[%clk 0:00:50.2]} 19. Rd6 {[%clk 0:01:22.4]} 19...
Ne5 {[%clk 0:00:43.9]} 20. Kc3 {[%clk 0:01:17.7]} 20... Bd7 {[%clk 0:00:23.5]}
21. Nb6 {[%clk 0:01:18.2]} 21... Bc6 {[%clk 0:00:21.8]} 22. Nf6 {[%clk
0:01:07.5]} 22... Bxg2 {[%clk 0:00:18.6]} 23. Rg1 {[%clk 0:01:02]} 23... Bc6
{[%clk 0:00:16.4]} 24. Nxe8 {[%clk 0:01:02]} 24... Rxe8 {[%clk 0:00:16.2]} 25.
f4 {[%clk 0:01:02.3]} 25... Nf3 {[%clk 0:00:16.7]} 26. Rf1 {[%clk 0:01:02.5]}
26... Ke7 {[%clk 0:00:17.4]} 27. Rxc6 {[%clk 0:01:02.2]} 27... bxc6 {[%clk
0:00:19.3]} 28. Rxf3 {[%clk 0:01:03.2]} 28... f5 {[%clk 0:00:20.4]} 29. Rf2
{[%clk 0:01:04.1]} 29... Rd8 {[%clk 0:00:21.5]} 30. Rd2 {[%clk 0:01:05]} 30...
Rxd2 {[%clk 0:00:22.3]} 31. Kxd2 {[%clk 0:01:06.8]} 31... h6 {[%clk 0:00:23.5]}
32. h4 {[%clk 0:01:07.2]} 32... Kf6 {[%clk 0:00:23.7]} 33. Nd7+ {[%clk
0:01:07.6]} 33... Kg7 {[%clk 0:00:23.5]} 34. Ne5 {[%clk 0:01:09.5]} 34... Kf6
{[%clk 0:00:24]} 35. Nxc6 {[%clk 0:01:10.3]} 35... g5 {[%clk 0:00:25.9]} 36.
hxg5+ {[%clk 0:01:09.3]} 36... hxg5 {[%clk 0:00:27.8]} 37. fxg5+ {[%clk
0:01:11.2]} 1-0

[Event "*** Qualifier 4: Titled Tuesday 3|2 Blitz"]
[Site "Chess.com"]
[Date "2017.04.25"]
[Round "5"]
[White "DariuszMikrut"]
[Black "igorkovalenko"]
[Result "0-1"]
[WhiteElo "2403"]
[BlackElo "2645"]
[TimeControl "180+2"]
[EndTime "14:02:15 PDT"]
[Termination "igorkovalenko won by resignation"]

1. d4 {[%clk 0:03:02]} 1... Nf6 {[%clk 0:02:59.6]} 2. c4 {[%clk 0:02:49.3]} 2...
e6 {[%clk 0:02:49.5]} 3. Nf3 {[%clk 0:02:49.4]} 3... b6 {[%clk 0:02:49.3]} 4. a3
{[%clk 0:02:49.6]} 4... Bb7 {[%clk 0:02:44.7]} 5. Nc3 {[%clk 0:02:49.6]} 5... d5
{[%clk 0:02:45.7]} 6. cxd5 {[%clk 0:02:49.9]} 6... Nxd5 {[%clk 0:02:47.6]} 7. e3
{[%clk 0:02:46.1]} 7... Nxc3 {[%clk 0:02:46.5]} 8. bxc3 {[%clk 0:02:46.8]} 8...
Be7 {[%clk 0:02:47.9]} 9. Bb5+ {[%clk 0:02:46.7]} 9... c6 {[%clk 0:02:48.7]} 10.
Bd3 {[%clk 0:02:47.7]} 10... Qc7 {[%clk 0:02:50.3]} 11. e4 {[%clk 0:02:48.6]}
11... c5 {[%clk 0:02:50.6]} 12. O-O {[%clk 0:02:49.4]} 12... O-O {[%clk
0:02:51.4]} 13. Bb2 {[%clk 0:02:50.2]} 13... Rd8 {[%clk 0:02:52.2]} 14. Qe2
{[%clk 0:02:49.5]} 14... h6 {[%clk 0:02:51.8]} 15. Rad1 {[%clk 0:02:49.6]} 15...
Nd7 {[%clk 0:02:52.5]} 16. Rfe1 {[%clk 0:02:48.6]} 16... Nf6 {[%clk 0:02:53.7]}
17. e5 {[%clk 0:02:37.3]} 17... Nd7 {[%clk 0:02:50.9]} 18. Nd2 {[%clk
0:02:27.8]} 18... Nf8 {[%clk 0:02:50.7]} 19. Qg4 {[%clk 0:02:26.7]} 19... Rac8
{[%clk 0:02:49.5]} 20. Ne4 {[%clk 0:02:22]} 20... Kh8 {[%clk 0:02:44.9]} 21. h4
{[%clk 0:02:17.7]} 21... b5 {[%clk 0:02:41.8]} 22. Ng3 {[%clk 0:02:08]} 22... b4
{[%clk 0:02:35.7]} 23. axb4 {[%clk 0:01:58.2]} 23... cxd4 {[%clk 0:02:34.3]} 24.
cxd4 {[%clk 0:01:43.6]} 24... Bxb4 {[%clk 0:02:34.5]} 25. Re3 {[%clk 0:01:39.8]}
25... Qe7 {[%clk 0:02:11]} 26. Nh5 {[%clk 0:01:37.4]} 26... g6 {[%clk
0:02:12.3]} 27. Qf4 {[%clk 0:01:29.1]} 27... Nh7 {[%clk 0:01:58.9]} 28. Nf6
{[%clk 0:01:26.2]} 28... Nxf6 {[%clk 0:01:37.4]} 29. exf6 {[%clk 0:01:21.1]}
29... Qf8 {[%clk 0:01:37.9]} 30. h5 {[%clk 0:01:05.6]} 30... g5 {[%clk
0:01:34.5]} 31. Qg4 {[%clk 0:00:56.5]} 31... Bd6 {[%clk 0:01:35.2]} 32. Bb1
{[%clk 0:00:45.6]} 32... Bd5 {[%clk 0:01:35]} 33. Qe2 {[%clk 0:00:33.9]} 33...
a5 {[%clk 0:01:34.9]} 34. Qd3 {[%clk 0:00:34.6]} 34... Qg8 {[%clk 0:01:35.5]}
35. Ba3 {[%clk 0:00:21.9]} 35... Rb8 {[%clk 0:01:35.3]} 36. Bxd6 {[%clk
0:00:21.9]} 36... Rxd6 {[%clk 0:01:37.2]} 37. Qa3 {[%clk 0:00:22.5]} 37... Rdb6
{[%clk 0:01:36.4]} 38. Qe7 {[%clk 0:00:22.6]} 38... Rxb1 {[%clk 0:01:36.6]} 39.
Rxb1 {[%clk 0:00:22.4]} 39... Rxb1+ {[%clk 0:01:38.5]} 40. Kh2 {[%clk
0:00:23.8]} 40... Rb7 {[%clk 0:01:39.7]} 41. Qd6 {[%clk 0:00:24]} 41... Qb8
{[%clk 0:01:39.4]} 0-1

[Event "*** Qualifier 4: Titled Tuesday 3|2 Blitz"]
[Site "Chess.com"]
[Date "2017.04.25"]
[Round "5"]
[White "Noukii"]
[Black "swayamsm"]
[Result "1-0"]
[WhiteElo "2625"]
[BlackElo "2407"]
[TimeControl "180+2"]
[EndTime "14:02:26 PDT"]
[Termination "Noukii won by resignation"]

1. d4 {[%clk 0:03:02]} 1... Nf6 {[%clk 0:02:56.9]} 2. Nf3 {[%clk 0:03:02.8]}
2... e6 {[%clk 0:02:50.8]} 3. Bg5 {[%clk 0:03:04.2]} 3... d5 {[%clk 0:02:42.2]}
4. e3 {[%clk 0:03:04.5]} 4... c5 {[%clk 0:02:40.2]} 5. Nbd2 {[%clk 0:02:54.8]}
5... h6 {[%clk 0:02:40.6]} 6. Bh4 {[%clk 0:02:52.6]} 6... Nc6 {[%clk 0:02:30.6]}
7. c3 {[%clk 0:02:51]} 7... Qb6 {[%clk 0:02:24.9]} 8. Qb3 {[%clk 0:02:43]} 8...
g5 {[%clk 0:02:24.2]} 9. Qxb6 {[%clk 0:02:38.7]} 9... axb6 {[%clk 0:02:20.6]}
10. Bg3 {[%clk 0:02:40.6]} 10... c4 {[%clk 0:02:22]} 11. a3 {[%clk 0:02:42.2]}
11... b5 {[%clk 0:02:23]} 12. Rc1 {[%clk 0:02:43.6]} 12... Nh5 {[%clk
0:02:08.5]} 13. Be2 {[%clk 0:02:21.1]} 13... Nxg3 {[%clk 0:01:32.8]} 14. hxg3
{[%clk 0:02:20.1]} 14... g4 {[%clk 0:01:23.2]} 15. Nh4 {[%clk 0:02:19.1]} 15...
f5 {[%clk 0:01:10.5]} 16. Ng6 {[%clk 0:02:18.7]} 16... Rh7 {[%clk 0:01:12.1]}
17. f3 {[%clk 0:02:11.5]} 17... gxf3 {[%clk 0:01:09.8]} 18. gxf3 {[%clk
0:02:13.4]} 18... Bd6 {[%clk 0:01:10]} 19. f4 {[%clk 0:02:07.9]} 19... Kf7
{[%clk 0:01:10.7]} 20. Ne5+ {[%clk 0:02:03.7]} 20... Bxe5 {[%clk 0:01:06.3]} 21.
dxe5 {[%clk 0:01:57.9]} 21... Bd7 {[%clk 0:01:06]} 22. Kf2 {[%clk 0:01:56.6]}
22... Kg7 {[%clk 0:01:01.7]} 23. Rcg1 {[%clk 0:01:52]} 23... Ne7 {[%clk
0:00:57.2]} 24. Nf3 {[%clk 0:01:50.6]} 24... Rg8 {[%clk 0:00:56.3]} 25. Nd4
{[%clk 0:01:46.5]} 25... Kf8 {[%clk 0:00:52]} 26. g4 {[%clk 0:01:43.8]} 26...
fxg4 {[%clk 0:00:50.5]} 27. Bxg4 {[%clk 0:01:43.2]} 27... Kf7 {[%clk 0:00:44.1]}
28. Kf3 {[%clk 0:01:30]} 28... Rgg7 {[%clk 0:00:35.6]} 29. Rh4 {[%clk
0:01:24.9]} 29... Nf5 {[%clk 0:00:31.5]} 30. Bxf5 {[%clk 0:01:24.1]} 30... exf5
{[%clk 0:00:28.6]} 31. e6+ {[%clk 0:01:11.8]} 31... Bxe6 {[%clk 0:00:29]} 32.
Rxg7+ {[%clk 0:01:13.4]} 32... Rxg7 {[%clk 0:00:28.9]} 33. Rxh6 {[%clk
0:01:14.7]} 33... Bd7 {[%clk 0:00:29.7]} 34. Rb6 {[%clk 0:01:13.9]} 34... Rg1
{[%clk 0:00:28.5]} 35. Rxb7 {[%clk 0:01:14.2]} 35... Ke8 {[%clk 0:00:29.1]} 36.
Nxb5 {[%clk 0:01:08.9]} 36... Bc6 {[%clk 0:00:20.6]} 37. Rb8+ {[%clk 0:01:09.3]}
37... Ke7 {[%clk 0:00:22]} 38. Nd4 {[%clk 0:01:10.9]} 38... Be8 {[%clk
0:00:23.5]} 39. Nxf5+ {[%clk 0:01:11.4]} 39... Kf8 {[%clk 0:00:25.1]} 40. Nd6
{[%clk 0:01:12.2]} 1-0

[Event "*** Qualifier 4: Titled Tuesday 3|2 Blitz"]
[Site "Chess.com"]
[Date "2017.04.25"]
[Round "5"]
[White "GrigorGrigorov"]
[Black "BogdanDeac"]
[Result "1-0"]
[WhiteElo "2507"]
[BlackElo "2553"]
[TimeControl "180+2"]
[EndTime "14:02:48 PDT"]
[Termination "GrigorGrigorov won by resignation"]

1. d4 {[%clk 0:03:02]} 1... Nf6 {[%clk 0:03:00]} 2. c4 {[%clk 0:03:03]} 2... e6
{[%clk 0:03:00.7]} 3. Nc3 {[%clk 0:03:04.1]} 3... Bb4 {[%clk 0:03:01]} 4. e3
{[%clk 0:03:05.4]} 4... c5 {[%clk 0:02:58.3]} 5. Ne2 {[%clk 0:03:03.8]} 5... d6
{[%clk 0:02:55.2]} 6. a3 {[%clk 0:03:02.1]} 6... Ba5 {[%clk 0:02:54.7]} 7. Bd2
{[%clk 0:03:00.7]} 7... O-O {[%clk 0:02:52.9]} 8. g3 {[%clk 0:02:45.3]} 8...
cxd4 {[%clk 0:02:50.3]} 9. exd4 {[%clk 0:02:40.6]} 9... d5 {[%clk 0:02:44.7]}
10. b4 {[%clk 0:02:36.9]} 10... Bc7 {[%clk 0:02:37.6]} 11. c5 {[%clk 0:02:37.8]}
11... e5 {[%clk 0:02:31.5]} 12. Bg2 {[%clk 0:02:35.1]} 12... Bg4 {[%clk
0:02:18.2]} 13. f3 {[%clk 0:02:32.8]} 13... Bf5 {[%clk 0:02:06.9]} 14. O-O
{[%clk 0:02:32.8]} 14... Nc6 {[%clk 0:02:04]} 15. Bg5 {[%clk 0:02:29.3]} 15...
a5 {[%clk 0:00:51.7]} 16. Bxf6 {[%clk 0:02:23]} 16... gxf6 {[%clk 0:00:51.8]}
17. f4 {[%clk 0:01:35.9]} 17... axb4 {[%clk 0:00:51.7]} 18. Nxd5 {[%clk
0:01:32.3]} 18... Be6 {[%clk 0:00:51.4]} 19. Nxc7 {[%clk 0:01:31]} 19... Qxc7
{[%clk 0:00:51.9]} 20. fxe5 {[%clk 0:01:07.8]} 20... fxe5 {[%clk 0:00:50.9]} 21.
d5 {[%clk 0:01:08.6]} 21... Rfd8 {[%clk 0:00:42.9]} 22. Qd2 {[%clk 0:00:53.2]}
22... Kh8 {[%clk 0:00:21.2]} 23. Qh6 {[%clk 0:00:33.4]} 23... Bxd5 {[%clk
0:00:20.9]} 24. Qf6+ {[%clk 0:00:33.9]} 24... Kg8 {[%clk 0:00:21.6]} 25. Bxd5
{[%clk 0:00:24.5]} 25... Rxd5 {[%clk 0:00:22]} 26. Rf5 {[%clk 0:00:22.9]} 26...
Rad8 {[%clk 0:00:21]} 27. Raf1 {[%clk 0:00:14.6]} 27... bxa3 {[%clk 0:00:18.5]}
28. Qh6 {[%clk 0:00:12.2]} 28... R8d7 {[%clk 0:00:15.7]} 29. Rg5+ {[%clk
0:00:11.7]} 1-0